Workbook

Sheet Budget
C2: =(N4& " de"&" " &N2&" "&N3) -> Budget Personnel de Août 2017 | M2: Mois : | N2: Août
M3: Année : | N3: 2017
M4: Titre du Tableau : | N4: Budget Personnel
D5: Dépenses totales prévues | E5: Dépenses totales réelles | F5: Différence totale | J5: Balance prévue (Epargne Prévu) (Revenu moins dépenses prévus) | K5: =K19-D6 -> 507€
D6: =E16+E23+E30+E38+E46+E52 -> 1,200€ | E6: =F16+F23+F30+F38+F46+F52 -> 249€ | F6: =G16+G23+G30+G38+G46+G52 -> 951€
J7: Balance réelle (Epargne Réel) (Revenu moins dépenses réels) | K7: =K28-E6 -> 177€
J9: Différence des balances (Réel moins prévu) | K9: =K7-K5 -> (329 €)
E11: Dépenses prévues | F11: Dépenses réelles | G11: Différence
D13: Habitation | J13: Salaire mensuel prévu
D14: Téléphone maison | E14: 50€ | F14: 48€ | G14: =E14-F14 -> 2€ | J14: Salaire 1 | K14: 1,200€
D15: Téléphone Mobile | E15: 20€ | G15: 20€ | J15: Salaire 2 | K15: 300€
D16: Sous-totaux | E16: =SUM(E14:E15) -> 70€ | F16: =SUM(F14:F15) -> 48€ | G16: =SUM(G14:G15) -> 22€ | J16: Indémnité Transport | K16: =F19/2 -> 0€
J17: Indémnité | K17: 207€
D18: Transport | J18: Revenu supplémentaire (retour épargne extérieur)
D19: Train | E19: 65€ | G19: =E19-F19 -> 65€ | J19: Revenu mensuel total | K19: =SUM(K14:K18) -> 1,707€
D20: Assurance automobile | E20: 100€ | F20: 40€ | G20: 60€
D21: Essence | E21: 80€ | G21: =E21-F21 -> 80€
D22: Divers | E22: 270€ | G22: =E22-F22 -> 270€ | J22: Salaire mensuel réel
D23: Sous-totaux | E23: =SUM(E19:E22) -> 515€ | F23: =SUM(F19:F22) -> 40€ | G23: =SUM(G19:G22) -> 475€ | J23: Salaire 1
J24: Salaire 2 | K24: =120+30 -> 150€
J25: Indémnité Transport
D26: Alimentation | J26: Indémnité | K26: 207€
D27: Courses | E27: 70€ | G27: =E27-F27 -> 70€ | J27: Revenu supplémentaire (retour épargne extérieur) | K27: =50+20 -> 70€
D28: Restaurants | E28: 100€ | F28: 25€ | G28: =E28-F28 -> 75€ | J28: Revenu mensuel total | K28: =SUM(K23:K27) -> 427€
D29: Divers | E29: 50€ | F29: =5.9+5.5 -> 11€ | G29: =E29-F29 -> 39€
D30: Sous-totaux | E30: =SUM(E27:E29) -> 220€ | F30: =SUM(F27:F29) -> 36€ | G30: =SUM(G27:G29) -> 184€
D33: Soins de la personne
D34: Coiffeur | E34: 40€ | G34: =E34-F34 -> 40€
D35: Vetements/Chaussure | E35: 60€ | G35: 60€
D36: Club de sport | E36: 25€ | G36: 25€
D37: Divers | G37: 0€
D38: Sous-totaux | E38: =SUM(E34:E37) -> 125€ | F38: =SUM(F34:F37) -> 0€ | G38: =SUM(G34:G37) -> 125€
D41: Divertissement
D42: Cinéma | E42: 20€ | G42: =E42-F42 -> 20€
D43: Sport | E43: 20€ | G43: 20€
D44: Chicha | E44: 30€ | F44: 120€ | G44: (90 €)
D45: Divers | F45: 5€ | G45: (5 €)
D46: Sous-totaux | E46: =SUM(E42:E45) -> 70€ | F46: =SUM(F42:F45) -> 125€ | G46: =SUM(G42:G45) -> (55 €)
D49: Cadeaux et dons
D50: Maman | E50: 100€ | G50: =E50-F50 -> 100€
D51: Divers | E51: 100€ | G51: =E51-F51 -> 100€
D52: Sous-totaux | E52: =SUM(E50:E51) -> 200€ | F52: =SUM(F50:F51) -> 0€ | G52: 200€

Sheet Tableau de Bord Global
A1: Tableaux de Bords Global
B3: Solde de départ | E3: Epargne extérieur | F3: =150+700+200+300 -> 1,350€ | K3: DATE DE DÉBUT | L3: 2017-08-30 | M3: PÉRIODE (EN JOURS) | O3: 32
C7: =UPPER(TEXT($L$3,"mmmm-aa")) -> AOÛT-17 | D7: =UPPER(TEXT(C7+$O$3,"mmm-aa")) -> SEPT-17 | E7: OCT-17 | F7: NOV-17 | G7: DÉC-17 | H7: JANV-18 | I7: FÉVR-18 | J7: MARS-18 | K7: AVR-18 | L7: MAI-18 | M7: JUIN-18 | N7: JUIL-18 | O7: AOÛT-18
B8: Reel
B10: Solde Début de mois | C10: =C3 -> 0€
B12: Revenus Totaux
B13: Dépenses Totales
B15: Solde fin de Mois | C15: =C10+C12-C13 -> 0€
C20: =UPPER(TEXT($L$3,"mmmm-aa")) -> AOÛT-17 | D20: =UPPER(TEXT(C20+$O$3,"mmm-aa")) -> SEPT-17 | E20: OCT-17 | F20: NOV-17 | G20: DÉC-17 | H20: JANV-18 | I20: FÉVR-18 | J20: MARS-18 | K20: AVR-18 | L20: MAI-18 | M20: JUIN-18 | N20: JUIL-18 | O20: AOÛT-18
B21: Previsionnel
B23: Solde Début de mois | C23: =C3 -> 0€
B25: Revenus Totaux
B26: Dépenses Totales
B28: Solde fin de Mois | C28: =C23+C25-C26 -> 0€

Sheet Tableau de Bord Intermediaire
A1: Tableaux de Bords Intermédiaires
B3: Solde de départ | E3: Epargne extérieur | F3: =150+700+200+300 -> 1,350€ | K3: DATE DE DÉBUT | L3: 2017-08-30 | M3: PÉRIODE (EN JOURS) | O3: 32
C6: =UPPER(TEXT($L$3,"mmmm-aa")) -> AOÛT-17 | D6: =UPPER(TEXT(C6+$O$3,"mmm-aa")) -> SEPT-17 | E6: OCT-17 | F6: NOV-17 | G6: DÉC-17 | H6: JANV-18 | I6: FÉVR-18 | J6: MARS-18 | K6: AVR-18 | L6: MAI-18 | M6: JUIN-18 | N6: JUIL-18 | O6: AOÛT-18
B7: REVENU NET réel | C7: =C13-C23 -> 0€ | D7: 0€ | E7: 0€ | F7: 0€ | G7: 0€ | H7: 0€ | I7: 0€ | J7: 0€ | K7: 0€ | L7: 0€ | M7: 0€ | N7: 0€ | O7: 0€
B9: Revenus | C9: =C13 -> 0€ | D9: 0€ | E9: 0€ | F9: 0€ | G9: 0€ | H9: 0€ | I9: 0€ | J9: 0€ | K9: 0€ | L9: 0€ | M9: 0€ | N9: 0€ | O9: 0€
B10: Salaire Caf du Rhône (Prime activité + Indmnité Transport)
B11: Fast Pizza
B12: Revenu supplémentaire (retour épargne extérieur)
B13: Revenus Totaux | C13: =SUM(C10:C12) -> 0€ | D13: =SUM(D10:D12) -> 0€ | E13: =SUM(E10:E12) -> 0€ | F13: =SUM(F10:F12) -> 0€ | G13: =SUM(G10:G12) -> 0€ | H13: =SUM(H10:H12) -> 0€ | I13: =SUM(I10:I12) -> 0€ | J13: =SUM(J10:J12) -> 0€ | K13: =SUM(K10:K12) -> 0€ | L13: =SUM(L10:L12) -> 0€ | M13: =SUM(M10:M12) -> 0€ | N13: =SUM(N10:N12) -> 0€ | O13: =SUM(O10:O12) -> 0€
B16: Dépenses | C16: =C23 -> 0€ | D16: 0€ | E16: 0€ | F16: 0€ | G16: 0€ | H16: 0€ | I16: 0€ | J16: 0€ | K16: 0€ | L16: 0€ | M16: 0€ | N16: 0€ | O16: 0€
B17: Habitation
B18: Transport
B19: Alimentation
B20: Soins de la personne
B21: Divertissement
B22: Cadeaux
B23: Dépenses Totales | C23: =SUM(C17:C22) -> 0€ | D23: 0€ | E23: 0€ | F23: 0€ | G23: 0€ | H23: 0€ | I23: 0€ | J23: 0€ | K23: 0€ | L23: 0€ | M23: 0€ | N23: 0€ | O23: 0€
C30: =UPPER(TEXT($L$3,"mmmm-aa")) -> AOÛT-17 | D30: =UPPER(TEXT(C30+$O$3,"mmm-aa")) -> SEPT-17 | E30: OCT-17 | F30: NOV-17 | G30: DÉC-17 | H30: JANV-18 | I30: FÉVR-18 | J30: MARS-18 | K30: AVR-18 | L30: MAI-18 | M30: JUIN-18 | N30: JUIL-18 | O30: AOÛT-18
B31: REVENU NET Prévisionnel | C31: =C37-C47 -> 0€ | D31: 0€ | E31: 0€ | F31: 0€ | G31: 0€ | H31: 0€ | I31: 0€ | J31: 0€ | K31: 0€ | L31: 0€ | M31: 0€ | N31: 0€ | O31: 0€
B33: Revenus | C33: =C37 -> 0€ | D33: 0€ | E33: 0€ | F33: 0€ | G33: 0€ | H33: 0€ | I33: 0€ | J33: 0€ | K33: 0€ | L33: 0€ | M33: 0€ | N33: 0€ | O33: 0€
B34: Salaire Caf du Rhône (Prime activité + Indmnité Transport)
B35: Fast Pizza
B36: Revenu supplémentaire (retour épargne extérieur)
B37: Revenus Totaux | C37: =SUM(C34:C36) -> 0€ | D37: 0€ | E37: 0€ | F37: 0€ | G37: 0€ | H37: 0€ | I37: 0€ | J37: 0€ | K37: 0€ | L37: 0€ | M37: 0€ | N37: 0€ | O37: 0€
B40: Dépenses | C40: =C47 -> 0€ | D40: 0€ | E40: 0€ | F40: 0€ | G40: 0€ | H40: 0€ | I40: 0€ | J40: 0€ | K40: 0€ | L40: 0€ | M40: 0€ | N40: 0€ | O40: 0€
B41: Habitation
B42: Transport
B43: Alimentation
B44: Soins de la personne
B45: Divertissement
B46: Cadeaux
B47: Dépenses Totales | C47: =SUM(C41:C46) -> 0€ | D47: 0€ | E47: 0€ | F47: 0€ | G47: 0€ | H47: 0€ | I47: 0€ | J47: 0€ | K47: 0€ | L47: 0€ | M47: 0€ | N47: 0€ | O47: 0€

Sheet Tableau de Bord Analytiques
A1: Tableaux de Bords Analytiques
B3: Solde de départ | E3: Epargne extérieur | F3: =150+700+200+300 -> 1,350€ | K3: DATE DE DÉBUT | L3: 2017-08-30 | M3: PÉRIODE (EN JOURS) | O3: 32
C5: =UPPER(TEXT($L$3,"mmmm-aa")) -> AOÛT-17 | D5: =UPPER(TEXT(C5+$O$3,"mmm-aa")) -> SEPT-17 | E5: OCT-17 | F5: NOV-17 | G5: DÉC-17 | H5: JANV-18 | I5: FÉVR-18 | J5: MARS-18 | K5: AVR-18 | L5: MAI-18 | M5: JUIN-18 | N5: JUIL-18 | O5: AOÛT-18
B6: REVENU NET réel | C6: =C14-C43 -> 0€ | D6: 0€ | E6: 0€ | F6: 0€ | G6: 0€ | H6: 0€ | I6: 0€ | J6: 0€ | K6: 0€ | L6: 0€ | M6: 0€ | N6: 0€ | O6: 0€
B8: Revenus | C8: =C14 -> 0€ | D8: 0€ | E8: 0€ | F8: 0€ | G8: 0€ | H8: 0€ | I8: 0€ | J8: 0€ | K8: 0€ | L8: 0€ | M8: 0€ | N8: 0€ | O8: 0€
B9: Salaire Caf du Rhône
B10: Fast Pizza
B11: Indémnité Transport Caf
B12: Indémnité "Prime à l'emploi"
B13: Revenu supplémentaire (retour épargne extérieur)
B14: Revenus Totaux | C14: =SUM(C9:C13) -> 0€ | D14: 0€ | E14: 0€ | F14: 0€ | G14: 0€ | H14: 0€ | I14: 0€ | J14: 0€ | K14: 0€ | L14: 0€ | M14: 0€ | N14: 0€ | O14: 0€
B17: Dépenses | C17: =C43 -> 0€ | D17: 0€ | E17: 0€ | F17: 0€ | G17: 0€ | H17: 0€ | I17: 0€ | J17: 0€ | K17: 0€ | L17: 0€ | M17: 0€ | N17: 0€ | O17: 0€
B18: Habitation :
B19: Forfait Maison
B20: Forfait Portable
B21: Transport :
B22: Train
B23: Assurance automobile
B24: Essence
B25: Divers
B26: Alimentation :
B27: Courses
B28: Restaurants
B29: Divers
B30: Soins de la personne :
B31: Coiffeur
B32: Vetements/Chaussure
B33: Club de sport
B34: Divers
B35: Divertissement :
B36: Cinéma
B37: Sport
B38: Chicha
B39: Divers
B40: Cadeaux :
B41: Maman
B42: Divers
B43: Dépenses Totales | C43: =SUM(C18:C42) -> 0€ | D43: 0€ | E43: 0€ | F43: 0€ | G43: 0€ | H43: 0€ | I43: 0€ | J43: 0€ | K43: 0€ | L43: 0€ | M43: 0€ | N43: 0€ | O43: 0€
C50: =UPPER(TEXT($L$3,"mmmm-aa")) -> AOÛT-17 | D50: =UPPER(TEXT(C50+$O$3,"mmm-aa")) -> SEPT-17 | E50: OCT-17 | F50: NOV-17 | G50: DÉC-17 | H50: JANV-18 | I50: FÉVR-18 | J50: MARS-18 | K50: AVR-18 | L50: MAI-18 | M50: JUIN-18 | N50: JUIL-18 | O50: AOÛT-18
B51: REVENU NET prévisionnel | C51: =C59-C88 -> 0€ | D51: 0€ | E51: 0€ | F51: 0€ | G51: 0€ | H51: 0€ | I51: 0€ | J51: 0€ | K51: 0€ | L51: 0€ | M51: 0€ | N51: 0€ | O51: 0€
B53: Revenus | C53: =C59 -> 0€ | D53: 0€ | E53: 0€ | F53: 0€ | G53: 0€ | H53: 0€ | I53: 0€ | J53: 0€ | K53: 0€ | L53: 0€ | M53: 0€ | N53: 0€ | O53: 0€
B54: Salaire Caf du Rhône
B55: Fast Pizza
B56: Indémnité Transport Caf
B57: Indémnité "Prime à l'emploi"
B58: Revenu supplémentaire (retour épargne extérieur)
B59: Revenus Totaux | C59: =SUM(C54:C58) -> 0€ | D59: 0€ | E59: 0€ | F59: 0€ | G59: 0€ | H59: 0€ | I59: 0€ | J59: 0€ | K59: 0€ | L59: 0€ | M59: 0€ | N59: 0€ | O59: 0€
B62: Dépenses | C62: =C88 -> 0€ | D62: 0€ | E62: 0€ | F62: 0€ | G62: 0€ | H62: 0€ | I62: 0€ | J62: 0€ | K62: 0€ | L62: 0€ | M62: 0€ | N62: 0€ | O62: 0€
B63: Habitation :
B64: Forfait Maison
B65: Forfait Portable
B66: Transport :
B67: Train
B68: Assurance automobile
B69: Essence
B70: Divers
B71: Alimentation :
B72: Courses
B73: Restaurants
B74: Divers
B75: Soins de la personne :
B76: Coiffeur
B77: Vetements/Chaussure
B78: Club de sport
B79: Divers
B80: Divertissement :
B81: Cinéma
B82: Sport
B83: Chicha
B84: Divers
B85: Cadeaux :
B86: Maman
B87: Divers
B88: Dépenses Totales | C88: =SUM(C63:C87) -> 0€ | D88: 0€ | E88: 0€ | F88: 0€ | G88: 0€ | H88: 0€ | I88: 0€ | J88: 0€ | K88: 0€ | L88: 0€ | M88: 0€ | N88: 0€ | O88: 0€

Sheet Source
B2: Année | C2: Mois
B3: 2017 | C3: Janvier
B4: 2018 | C4: Février
B5: 2019 | C5: Mars
B6: 2020 | C6: Avril
B7: 2021 | C7: Mai
B8: 2022 | C8: Juin
B9: 2023 | C9: Juillet
B10: 2024 | C10: Août
B11: 2025 | C11: Septembre
B12: 2026 | C12: Octobre
B13: 2027 | C13: Novembre
B14: 2028 | C14: Décembre

Sheet Feuil1
